[Event "*** SCC Grand Prix: Titled Tuesday Blitz"]
[Site "Chess.com"]
[Date "2020.06.23"]
[Round "4"]
[White "crazy_but_lazy"]
[Black "Shankovskyi"]
[Result "1/2-1/2"]
[WhiteElo "2321"]
[BlackElo "2460"]
[TimeControl "180+1"]
[EndTime "10:41:59 PDT"]
[Termination "Game drawn by repetition"]

1. d4 {[%clk 0:03:00.9]} 1... Nf6 {[%clk 0:02:58.4]} 2. c4 {[%clk 0:03:00.8]}
2... g6 {[%clk 0:02:57.3]} 3. Nc3 {[%clk 0:02:59.1]} 3... d6 {[%clk 0:02:57.1]}
4. e4 {[%clk 0:02:58.9]} 4... Bg7 {[%clk 0:02:55]} 5. Nge2 {[%clk 0:02:58.9]}
5... O-O {[%clk 0:02:54.1]} 6. Ng3 {[%clk 0:02:59]} 6... a6 {[%clk 0:02:49.7]}
7. Be2 {[%clk 0:02:53.9]} 7... Nbd7 {[%clk 0:02:42.1]} 8. Be3 {[%clk 0:02:49.4]}
8... e5 {[%clk 0:02:29.8]} 9. d5 {[%clk 0:02:48.9]} 9... Ne8 {[%clk 0:02:22.2]}
10. O-O {[%clk 0:02:42.6]} 10... f5 {[%clk 0:02:21.9]} 11. exf5 {[%clk
0:02:42.8]} 11... gxf5 {[%clk 0:02:20.7]} 12. f4 {[%clk 0:02:42.9]} 12... e4
{[%clk 0:02:17.3]} 13. Qd2 {[%clk 0:02:25.5]} 13... a5 {[%clk 0:02:03.8]} 14.
Rfd1 {[%clk 0:02:11.7]} 14... Nc5 {[%clk 0:02:01.5]} 15. Rac1 {[%clk 0:02:08.3]}
15... Bd7 {[%clk 0:01:55.6]} 16. b3 {[%clk 0:02:03.6]} 16... Qh4 {[%clk
0:01:41.7]} 17. Nf1 {[%clk 0:01:54]} 17... Nf6 {[%clk 0:01:31.6]} 18. Bd4 {[%clk
0:01:52.3]} 18... Kf7 {[%clk 0:01:19.2]} 19. g3 {[%clk 0:01:51.7]} 19... Qh6
{[%clk 0:01:13.7]} 20. Ne3 {[%clk 0:01:51.7]} 20... Rg8 {[%clk 0:01:11.6]} 21.
Ng2 {[%clk 0:01:41.6]} 21... Ng4 {[%clk 0:01:04.2]} 22. Bxg4 {[%clk 0:01:36.3]}
22... Bxd4+ {[%clk 0:01:01.1]} 23. Qxd4 {[%clk 0:01:36.6]} 23... Rxg4 {[%clk
0:01:02]} 24. Rc2 {[%clk 0:01:21.6]} 24... Rag8 {[%clk 0:01:01.8]} 25. Ne2
{[%clk 0:01:15.1]} 25... b6 {[%clk 0:00:53.3]} 26. Rf1 {[%clk 0:01:05.6]} 26...
Qh3 {[%clk 0:00:45.1]} 27. Nc1 {[%clk 0:00:51.1]} 27... h5 {[%clk 0:00:41.3]}
28. Ne3 {[%clk 0:00:44.3]} 28... h4 {[%clk 0:00:39.6]} 29. Nxg4 {[%clk
0:00:40.5]} 29... Qxg4 {[%clk 0:00:37.7]} 30. Rg2 {[%clk 0:00:35.1]} 30... Be8
{[%clk 0:00:32.7]} 31. a3 {[%clk 0:00:26.2]} 31... Ke7 {[%clk 0:00:19.7]} 32. b4
{[%clk 0:00:26.2]} 32... axb4 {[%clk 0:00:20.6]} 33. axb4 {[%clk 0:00:27.1]}
33... Nd7 {[%clk 0:00:20.9]} 34. Qd2 {[%clk 0:00:23.1]} 34... Bh5 {[%clk
0:00:20.1]} 35. gxh4 {[%clk 0:00:22.4]} 35... Qxg2+ {[%clk 0:00:14.9]} 36. Qxg2
{[%clk 0:00:22.1]} 36... Rxg2+ {[%clk 0:00:15.8]} 37. Kxg2 {[%clk 0:00:23]}
37... Nf6 {[%clk 0:00:15.8]} 38. h3 {[%clk 0:00:21.1]} 38... Kf7 {[%clk
0:00:15.5]} 39. Kf2 {[%clk 0:00:18.5]} 39... Bf3 {[%clk 0:00:15.3]} 40. Ke3
{[%clk 0:00:17.6]} 40... Bg2 {[%clk 0:00:15.6]} 41. Rg1 {[%clk 0:00:17.3]} 41...
Bxh3 {[%clk 0:00:15.7]} 42. Kd4 {[%clk 0:00:13.1]} 42... Nh5 {[%clk 0:00:13.9]}
43. Ne2 {[%clk 0:00:12.8]} 43... Bg4 {[%clk 0:00:14.2]} 44. Ke3 {[%clk
0:00:06.9]} 44... Bxe2 {[%clk 0:00:13.7]} 45. Kxe2 {[%clk 0:00:07.8]} 45...
Nxf4+ {[%clk 0:00:14.3]} 46. Ke3 {[%clk 0:00:08.5]} 46... Nh3 {[%clk 0:00:12]}
47. Rh1 {[%clk 0:00:06.2]} 47... f4+ {[%clk 0:00:07.4]} 48. Ke2 {[%clk
0:00:06.7]} 48... f3+ {[%clk 0:00:06.4]} 49. Ke3 {[%clk 0:00:06.9]} 49... f2
{[%clk 0:00:06.1]} 50. Ke2 {[%clk 0:00:06.2]} 50... Nf4+ {[%clk 0:00:04]} 51.
Kxf2 {[%clk 0:00:06.7]} 51... Nd3+ {[%clk 0:00:04.9]} 52. Ke3 {[%clk 0:00:07.1]}
52... Nxb4 {[%clk 0:00:05.8]} 53. Kxe4 {[%clk 0:00:07.6]} 53... Na6 {[%clk
0:00:05.3]} 54. Rg1 {[%clk 0:00:07.2]} 54... Nc5+ {[%clk 0:00:06.2]} 55. Kd4
{[%clk 0:00:06.8]} 55... Nb3+ {[%clk 0:00:06.2]} 56. Ke3 {[%clk 0:00:07.3]}
56... Nc5 {[%clk 0:00:07.1]} 57. h5 {[%clk 0:00:07.6]} 57... Nd7 {[%clk
0:00:07.5]} 58. h6 {[%clk 0:00:07.5]} 58... Nf6 {[%clk 0:00:08.4]} 59. Rf1
{[%clk 0:00:07.1]} 59... Kg6 {[%clk 0:00:09.3]} 60. Rh1 {[%clk 0:00:06]} 60...
Ng4+ {[%clk 0:00:09.2]} 61. Kf4 {[%clk 0:00:05.9]} 61... Nxh6 {[%clk 0:00:10.1]}
62. Ke4 {[%clk 0:00:05.1]} 62... Kg7 {[%clk 0:00:09.6]} 63. Kf4 {[%clk
0:00:04.8]} 63... Kg6 {[%clk 0:00:09.6]} 64. Ke4 {[%clk 0:00:03.9]} 64... Nf7
{[%clk 0:00:08.7]} 65. Rg1+ {[%clk 0:00:03.6]} 65... Kf6 {[%clk 0:00:08.9]} 66.
Rf1+ {[%clk 0:00:04.3]} 66... Ke7 {[%clk 0:00:09.2]} 67. Rh1 {[%clk 0:00:04.3]}
67... Ng5+ {[%clk 0:00:09.2]} 68. Kf5 {[%clk 0:00:04.6]} 68... Nf3 {[%clk
0:00:07.7]} 69. Rh7+ {[%clk 0:00:05.1]} 69... Kd8 {[%clk 0:00:08.2]} 70. Ke6
{[%clk 0:00:05.6]} 70... Nd4+ {[%clk 0:00:08.7]} 71. Kf6 {[%clk 0:00:05.6]}
71... Nb3 {[%clk 0:00:09.6]} 72. Kf5 {[%clk 0:00:05.6]} 72... Nc5 {[%clk
0:00:09.7]} 73. Rh8+ {[%clk 0:00:05.1]} 73... Kd7 {[%clk 0:00:10.6]} 74. Rh7+
{[%clk 0:00:06]} 74... Kd8 {[%clk 0:00:10.9]} 75. Rh4 {[%clk 0:00:06.6]} 75...
Kd7 {[%clk 0:00:11.8]} 76. Kf6 {[%clk 0:00:06.5]} 76... Nd3 {[%clk 0:00:11]} 77.
Rh7+ {[%clk 0:00:06]} 77... Kd8 {[%clk 0:00:11.9]} 78. Ke6 {[%clk 0:00:06.5]}
78... Nc5+ {[%clk 0:00:12.4]} 79. Kf5 {[%clk 0:00:06.7]} 79... Kc8 {[%clk
0:00:11.6]} 80. Kf4 {[%clk 0:00:06.9]} 80... Nd7 {[%clk 0:00:11.3]} 81. Ke3
{[%clk 0:00:07.1]} 81... Ne5 {[%clk 0:00:11.5]} 82. Kd4 {[%clk 0:00:07.1]} 82...
Nf3+ {[%clk 0:00:11]} 83. Ke3 {[%clk 0:00:07.1]} 83... Ne5 {[%clk 0:00:11.9]}
84. Kd4 {[%clk 0:00:07.6]} 84... Nf3+ {[%clk 0:00:12.3]} 85. Kc3 {[%clk
0:00:07.6]} 85... Ng5 {[%clk 0:00:11.7]} 86. Rg7 {[%clk 0:00:07.4]} 86... Nf3
{[%clk 0:00:09.1]} 87. Kb4 {[%clk 0:00:07.3]} 87... Ne5 {[%clk 0:00:10]} 88. Rh7
{[%clk 0:00:07.4]} 88... Kb7 {[%clk 0:00:10.9]} 89. Kb5 {[%clk 0:00:07.1]} 89...
Nf3 {[%clk 0:00:09.9]} 90. Kb4 {[%clk 0:00:07.4]} 90... Nd4 {[%clk 0:00:08.3]}
91. Kc3 {[%clk 0:00:07.3]} 91... Nf3 {[%clk 0:00:08.1]} 92. Kd3 {[%clk
0:00:07.1]} 92... Ne5+ {[%clk 0:00:09]} 93. Ke4 {[%clk 0:00:06.8]} 93... Kc8
{[%clk 0:00:07.4]} 94. Kd4 {[%clk 0:00:05.9]} 1/2-1/2

[Event "*** SCC Grand Prix: Titled Tuesday Blitz"]
[Site "Chess.com"]
[Date "2020.06.23"]
[Round "5"]
[White "GadimbayliA"]
[Black "Igor_Lysyj"]
[Result "1/2-1/2"]
[WhiteElo "2874"]
[BlackElo "2761"]
[TimeControl "180+1"]
[EndTime "10:51:04 PDT"]
[Termination "Game drawn by agreement"]

1. e4 {[%clk 0:02:59.2]} 1... e5 {[%clk 0:02:59.5]} 2. Nf3 {[%clk 0:02:59.4]}
2... Nc6 {[%clk 0:02:59.2]} 3. Nc3 {[%clk 0:02:59.6]} 3... Nf6 {[%clk
0:02:58.4]} 4. d4 {[%clk 0:02:58.5]} 4... exd4 {[%clk 0:02:58]} 5. Nxd4 {[%clk
0:02:59.4]} 5... Bb4 {[%clk 0:02:57.8]} 6. Nxc6 {[%clk 0:02:59.9]} 6... bxc6
{[%clk 0:02:57.4]} 7. Bd3 {[%clk 0:03:00.5]} 7... O-O {[%clk 0:02:56.8]} 8. O-O
{[%clk 0:03:00.3]} 8... d5 {[%clk 0:02:57]} 9. exd5 {[%clk 0:03:01.2]} 9... cxd5
{[%clk 0:02:56.6]} 10. Bg5 {[%clk 0:03:01.1]} 10... c6 {[%clk 0:02:55.3]} 11.
Qf3 {[%clk 0:03:01.2]} 11... Bd6 {[%clk 0:02:52.6]} 12. Rae1 {[%clk 0:03:00]}
12... Rb8 {[%clk 0:02:49.3]} 13. Nd1 {[%clk 0:02:59.8]} 13... h6 {[%clk
0:02:32.3]} 14. Bxf6 {[%clk 0:02:59.4]} 14... Qxf6 {[%clk 0:02:32.3]} 15. Qxf6
{[%clk 0:02:59.5]} 15... gxf6 {[%clk 0:02:32.2]} 16. b3 {[%clk 0:03:00.1]} 16...
f5 {[%clk 0:02:31.3]} 17. Ne3 {[%clk 0:02:59.8]} 17... f4 {[%clk 0:02:30.5]} 18.
Nf5 {[%clk 0:03:00.3]} 18... Bxf5 {[%clk 0:02:30.3]} 19. Bxf5 {[%clk 0:03:01.2]}
19... Kg7 {[%clk 0:02:24.1]} 1/2-1/2

[Event "*** SCC Grand Prix: Titled Tuesday Blitz"]
[Site "Chess.com"]
[Date "2020.06.23"]
[Round "5"]
[White "Th3_Hound"]
[Black "Kopytkin"]
[Result "0-1"]
[WhiteElo "2538"]
[BlackElo "2406"]
[TimeControl "180+1"]
[EndTime "10:51:27 PDT"]
[Termination "Kopytkin won by resignation"]

1. e4 {[%clk 0:03:00.9]} 1... Nf6 {[%clk 0:02:58.1]} 2. e5 {[%clk 0:03:00.9]}
2... Nd5 {[%clk 0:02:58]} 3. d4 {[%clk 0:03:01.3]} 3... d6 {[%clk 0:02:58.5]} 4.
c4 {[%clk 0:03:01.8]} 4... Nb6 {[%clk 0:02:58.3]} 5. exd6 {[%clk 0:03:02.7]}
5... cxd6 {[%clk 0:02:58.9]} 6. Bd3 {[%clk 0:03:02.7]} 6... g6 {[%clk
0:02:59.1]} 7. Ne2 {[%clk 0:03:02.2]} 7... Bg7 {[%clk 0:02:59.7]} 8. Nbc3 {[%clk
0:03:02.6]} 8... O-O {[%clk 0:02:59.9]} 9. O-O {[%clk 0:03:02.4]} 9... Nc6
{[%clk 0:03:00.5]} 10. Be3 {[%clk 0:03:00.9]} 10... Bg4 {[%clk 0:02:55]} 11. f3
{[%clk 0:03:00.4]} 11... Bf5 {[%clk 0:02:52.3]} 12. Rc1 {[%clk 0:02:57.1]} 12...
Bxd3 {[%clk 0:02:49.6]} 13. Qxd3 {[%clk 0:02:58]} 13... Nb4 {[%clk 0:02:50]} 14.
Qb1 {[%clk 0:02:51.2]} 14... Nxc4 {[%clk 0:02:49.4]} 15. Bf4 {[%clk 0:02:44.1]}
15... e5 {[%clk 0:02:43.8]} 16. Ne4 {[%clk 0:02:34.6]} 16... Rc8 {[%clk
0:02:25.3]} 17. dxe5 {[%clk 0:02:32.3]} 17... dxe5 {[%clk 0:02:20.8]} 18. Rfd1
{[%clk 0:02:32.4]} 18... Qb6+ {[%clk 0:02:19]} 19. Kh1 {[%clk 0:02:32.9]} 19...
exf4 {[%clk 0:02:19.1]} 0-1

[Event "*** SCC Grand Prix: Titled Tuesday Blitz"]
[Site "Chess.com"]
[Date "2020.06.23"]
[Round "5"]
[White "serhanberat_ozdemir"]
[Black "124chess"]
[Result "0-1"]
[WhiteElo "2532"]
[BlackElo "2721"]
[TimeControl "180+1"]
[EndTime "10:51:42 PDT"]
[Termination "124chess won by resignation"]

1. e4 {[%clk 0:03:00]} 1... e6 {[%clk 0:03:00.9]} 2. d4 {[%clk 0:02:59.8]} 2...
d5 {[%clk 0:03:01.8]} 3. Nd2 {[%clk 0:02:59.4]} 3... Nc6 {[%clk 0:03:00.9]} 4.
Ngf3 {[%clk 0:02:59.4]} 4... Nf6 {[%clk 0:03:01]} 5. e5 {[%clk 0:02:59.4]} 5...
Nd7 {[%clk 0:03:01.6]} 6. Bb5 {[%clk 0:02:55.5]} 6... a6 {[%clk 0:03:01.6]} 7.
Bxc6 {[%clk 0:02:55.3]} 7... bxc6 {[%clk 0:03:02.5]} 8. c4 {[%clk 0:02:55.8]}
8... Bb7 {[%clk 0:02:53.8]} 9. O-O {[%clk 0:02:47.3]} 9... c5 {[%clk 0:02:52.8]}
10. cxd5 {[%clk 0:02:38.1]} 10... Bxd5 {[%clk 0:02:53.7]} 11. Re1 {[%clk
0:02:06.2]} 11... Be7 {[%clk 0:02:51.1]} 12. Ne4 {[%clk 0:02:04.3]} 12... O-O
{[%clk 0:02:50.3]} 13. Bg5 {[%clk 0:01:54.1]} 13... Bxe4 {[%clk 0:02:50.4]} 14.
Bxe7 {[%clk 0:01:53.8]} 14... Bxf3 {[%clk 0:02:50.7]} 15. Re4 {[%clk 0:01:54.7]}
15... Bxd1 {[%clk 0:02:48.3]} 16. Bxd8 {[%clk 0:01:54]} 16... Rfxd8 {[%clk
0:02:47.4]} 17. Rxd1 {[%clk 0:01:54.3]} 17... Nb6 {[%clk 0:02:46.1]} 18. dxc5
{[%clk 0:01:51.2]} 18... Rxd1+ {[%clk 0:02:45.8]} 0-1

[Event "*** SCC Grand Prix: Titled Tuesday Blitz"]
[Site "Chess.com"]
[Date "2020.06.23"]
[Round "5"]
[White "eCztery"]
[Black "GMTalks_Youtube"]
[Result "1-0"]
[WhiteElo "2382"]
[BlackElo "2675"]
[TimeControl "180+1"]
[EndTime "10:52:34 PDT"]
[Termination "eCztery won by resignation"]

1. e4 {[%clk 0:03:00.9]} 1... e5 {[%clk 0:02:59.5]} 2. Nf3 {[%clk 0:03:00.3]}
2... Nc6 {[%clk 0:02:59.6]} 3. d4 {[%clk 0:02:57.8]} 3... exd4 {[%clk
0:02:59.2]} 4. Nxd4 {[%clk 0:02:58.7]} 4... Bc5 {[%clk 0:02:58.4]} 5. Nb3 {[%clk
0:02:52.9]} 5... Bb6 {[%clk 0:02:57.9]} 6. Nc3 {[%clk 0:02:51.8]} 6... Nf6
{[%clk 0:02:57.2]} 7. Qe2 {[%clk 0:02:50.6]} 7... O-O {[%clk 0:02:56]} 8. Be3
{[%clk 0:02:47.6]} 8... Re8 {[%clk 0:02:54.4]} 9. f3 {[%clk 0:02:44.5]} 9... d5
{[%clk 0:02:22.2]} 10. O-O-O {[%clk 0:02:38.3]} 10... d4 {[%clk 0:02:13.1]} 11.
Nb5 {[%clk 0:02:28.9]} 11... dxe3 {[%clk 0:02:12]} 12. Rxd8 {[%clk 0:02:25.1]}
12... Rxd8 {[%clk 0:02:12.9]} 13. Nc3 {[%clk 0:02:15.4]} 13... Re8 {[%clk
0:02:13.8]} 14. Na4 {[%clk 0:02:04.9]} 14... Rd8 {[%clk 0:02:14.7]} 15. Nxb6
{[%clk 0:01:59.8]} 15... Be6 {[%clk 0:02:15.6]} 16. Nxa8 {[%clk 0:01:55]} 16...
Bxb3 {[%clk 0:02:16.5]} 17. axb3 {[%clk 0:01:52.7]} 1-0

[Event "*** SCC Grand Prix: Titled Tuesday Blitz"]
[Site "Chess.com"]
[Date "2020.06.23"]
[Round "5"]
[White "Leonid_Starozhilov"]
[Black "MateSchmate"]
[Result "1-0"]
[WhiteElo "2725"]
[BlackElo "2467"]
[TimeControl "180+1"]
[EndTime "10:53:12 PDT"]
[Termination "Leonid_Starozhilov won by resignation"]

1. e4 {[%clk 0:03:00.9]} 1... e6 {[%clk 0:03:00]} 2. d4 {[%clk 0:03:00.8]} 2...
d5 {[%clk 0:03:00.5]} 3. e5 {[%clk 0:03:01.2]} 3... c5 {[%clk 0:03:00.3]} 4. c3
{[%clk 0:03:01.9]} 4... Nc6 {[%clk 0:03:00.9]} 5. Nf3 {[%clk 0:03:01.8]} 5...
Qb6 {[%clk 0:03:01.4]} 6. a3 {[%clk 0:03:01.7]} 6... c4 {[%clk 0:03:01.8]} 7.
Nbd2 {[%clk 0:03:00.5]} 7... Na5 {[%clk 0:03:02.4]} 8. Be2 {[%clk 0:02:59.7]}
8... Bd7 {[%clk 0:03:02.9]} 9. O-O {[%clk 0:02:59.9]} 9... Ne7 {[%clk
0:03:02.3]} 10. Ng5 {[%clk 0:02:59.7]} 10... h6 {[%clk 0:02:57.9]} 11. Nh3
{[%clk 0:02:59.8]} 11... Nb3 {[%clk 0:02:57.3]} 12. Nxb3 {[%clk 0:02:59.1]}
12... Ba4 {[%clk 0:02:57.5]} 13. f4 {[%clk 0:02:41.3]} 13... Bxb3 {[%clk
0:02:43.4]} 14. Qe1 {[%clk 0:02:40.8]} 14... g6 {[%clk 0:02:36.2]} 15. Kh1
{[%clk 0:02:38.5]} 15... h5 {[%clk 0:02:30.8]} 16. Be3 {[%clk 0:02:26.6]} 16...
Nf5 {[%clk 0:02:28.4]} 17. Qd2 {[%clk 0:02:26.8]} 17... Nxe3 {[%clk 0:02:21.5]}
18. Qxe3 {[%clk 0:02:25.8]} 18... Bc2 {[%clk 0:02:21.9]} 19. Qd2 {[%clk
0:02:21.4]} 19... Bf5 {[%clk 0:02:19]} 20. Ng1 {[%clk 0:02:14.5]} 20... Be7
{[%clk 0:02:09.2]} 21. Nf3 {[%clk 0:02:13.3]} 21... O-O {[%clk 0:02:07.5]} 22.
g3 {[%clk 0:01:38]} 22... a5 {[%clk 0:02:02.9]} 23. Kg2 {[%clk 0:01:36.4]} 23...
Qc7 {[%clk 0:01:58.3]} 24. h3 {[%clk 0:01:34.5]} 24... Kg7 {[%clk 0:01:56.5]}
25. Nh2 {[%clk 0:01:34.1]} 25... b5 {[%clk 0:01:51.5]} 26. g4 {[%clk 0:01:31.3]}
26... g5 {[%clk 0:01:51.8]} 27. gxf5 {[%clk 0:01:30]} 1-0

[Event "*** SCC Grand Prix: Titled Tuesday Blitz"]
[Site "Chess.com"]
[Date "2020.06.23"]
[Round "5"]
[White "BocharovD"]
[Black "Lion-Al-Messi"]
[Result "1-0"]
[WhiteElo "2721"]
[BlackElo "2454"]
[TimeControl "180+1"]
[EndTime "10:53:17 PDT"]
[Termination "BocharovD won by resignation"]

1. d4 {[%clk 0:03:00.9]} 1... b6 {[%clk 0:03:00.4]} 2. e4 {[%clk 0:03:00.1]}
2... Bb7 {[%clk 0:03:00.7]} 3. Bd3 {[%clk 0:03:00.7]} 3... e6 {[%clk 0:03:00.6]}
4. Nf3 {[%clk 0:02:59.9]} 4... c5 {[%clk 0:02:59.6]} 5. c3 {[%clk 0:02:59.4]}
5... Nf6 {[%clk 0:02:59.7]} 6. Nbd2 {[%clk 0:02:57.7]} 6... cxd4 {[%clk
0:02:35.2]} 7. cxd4 {[%clk 0:02:55.8]} 7... d6 {[%clk 0:02:31]} 8. O-O {[%clk
0:02:54.2]} 8... Be7 {[%clk 0:02:31.3]} 9. Qe2 {[%clk 0:02:52.3]} 9... O-O
{[%clk 0:02:31.2]} 10. Rd1 {[%clk 0:02:49.4]} 10... Nbd7 {[%clk 0:02:04.4]} 11.
e5 {[%clk 0:02:47.3]} 11... Nd5 {[%clk 0:02:01]} 12. Ne4 {[%clk 0:02:46.7]}
12... dxe5 {[%clk 0:01:34.7]} 13. dxe5 {[%clk 0:02:47.6]} 13... Nc5 {[%clk
0:01:22.6]} 14. Nxc5 {[%clk 0:02:45.3]} 14... Bxc5 {[%clk 0:01:23.5]} 15. Bxh7+
{[%clk 0:02:36.9]} 15... Kxh7 {[%clk 0:01:22.9]} 16. Ng5+ {[%clk 0:02:37]} 16...
Kg6 {[%clk 0:01:02.4]} 17. Qe4+ {[%clk 0:02:34.7]} 1-0

[Event "*** SCC Grand Prix: Titled Tuesday Blitz"]
[Site "Chess.com"]
[Date "2020.06.23"]
[Round "5"]
[White "Karacsonyi_Gellert"]
[Black "Infernal_XaM"]
[Result "0-1"]
[WhiteElo "2502"]
[BlackElo "2815"]
[TimeControl "180+1"]
[EndTime "10:53:18 PDT"]
[Termination "Infernal_XaM won by resignation"]

1. e4 {[%clk 0:03:00.9]} 1... e6 {[%clk 0:02:59.3]} 2. d4 {[%clk 0:03:00.5]}
2... d5 {[%clk 0:02:59.8]} 3. e5 {[%clk 0:03:00.8]} 3... c5 {[%clk 0:02:59.7]}
4. c3 {[%clk 0:03:01.2]} 4... Qb6 {[%clk 0:03:00.2]} 5. Nf3 {[%clk 0:02:59.6]}
5... Bd7 {[%clk 0:03:00.4]} 6. Bd3 {[%clk 0:02:56.8]} 6... cxd4 {[%clk
0:02:59.1]} 7. cxd4 {[%clk 0:02:55.6]} 7... Nc6 {[%clk 0:02:58.6]} 8. O-O {[%clk
0:02:49.8]} 8... Nxd4 {[%clk 0:02:57.7]} 9. Nxd4 {[%clk 0:02:49.8]} 9... Qxd4
{[%clk 0:02:58.2]} 10. Nc3 {[%clk 0:02:50.2]} 10... Qxe5 {[%clk 0:02:58.2]} 11.
Re1 {[%clk 0:02:49.9]} 11... Qb8 {[%clk 0:02:58.1]} 12. Nxd5 {[%clk 0:02:47.8]}
12... Bd6 {[%clk 0:02:58.6]} 13. Qg4 {[%clk 0:02:40.6]} 13... Kf8 {[%clk
0:02:54.5]} 14. g3 {[%clk 0:01:44.8]} 14... h5 {[%clk 0:02:50.1]} 15. Qh3 {[%clk
0:01:44.2]} 15... h4 {[%clk 0:02:50.5]} 16. Bf4 {[%clk 0:01:35.7]} 16... Bc6
{[%clk 0:02:46.6]} 17. Bxd6+ {[%clk 0:01:26]} 17... Qxd6 {[%clk 0:02:46.1]} 18.
Nf4 {[%clk 0:01:26.6]} 18... hxg3 {[%clk 0:02:35.3]} 19. Qxh8 {[%clk 0:01:13.6]}
19... gxf2+ {[%clk 0:02:33.5]} 20. Kxf2 {[%clk 0:01:12.9]} 20... Qxf4+ {[%clk
0:02:34]} 21. Ke2 {[%clk 0:01:10.9]} 21... Bf3+ {[%clk 0:02:21.8]} 22. Kf2
{[%clk 0:01:06.6]} 22... Be4+ {[%clk 0:02:20.7]} 23. Kg1 {[%clk 0:01:00.3]}
23... Qg4+ {[%clk 0:02:19]} 24. Kf2 {[%clk 0:00:59.6]} 24... Qf3+ {[%clk
0:02:19.6]} 0-1

[Event "*** SCC Grand Prix: Titled Tuesday Blitz"]
[Site "Chess.com"]
[Date "2020.06.23"]
[Round "5"]
[White "chess94cu"]
[Black "praveenb2002"]
[Result "0-1"]
[WhiteElo "2546"]
[BlackElo "2772"]
[TimeControl "180+1"]
[EndTime "10:53:19 PDT"]
[Termination "praveenb2002 won by resignation"]

1. d4 {[%clk 0:03:00.9]} 1... Nf6 {[%clk 0:02:57.8]} 2. c4 {[%clk 0:03:01.4]}
2... e6 {[%clk 0:02:58.4]} 3. Nf3 {[%clk 0:02:59.8]} 3... d5 {[%clk 0:02:58.7]}
4. Nc3 {[%clk 0:02:58.4]} 4... Be7 {[%clk 0:02:58.6]} 5. Bf4 {[%clk 0:02:58.2]}
5... O-O {[%clk 0:02:57.2]} 6. e3 {[%clk 0:02:58.8]} 6... b6 {[%clk 0:02:56.6]}
7. Qc2 {[%clk 0:02:55.7]} 7... c5 {[%clk 0:02:52.1]} 8. Rd1 {[%clk 0:02:27.2]}
8... Nc6 {[%clk 0:02:44.6]} 9. dxc5 {[%clk 0:02:25.8]} 9... bxc5 {[%clk
0:02:45.5]} 10. cxd5 {[%clk 0:02:25.2]} 10... exd5 {[%clk 0:02:40.5]} 11. Bb5
{[%clk 0:02:18.1]} 11... Qb6 {[%clk 0:02:40.3]} 12. Bxc6 {[%clk 0:02:10.3]}
12... Qxc6 {[%clk 0:02:41.2]} 13. O-O {[%clk 0:02:10.4]} 13... Bb7 {[%clk
0:02:27.1]} 14. Ne5 {[%clk 0:02:07.9]} 14... Qb6 {[%clk 0:02:20.1]} 15. Bg5
{[%clk 0:02:02.7]} 15... Rfd8 {[%clk 0:02:19.4]} 16. Ng4 {[%clk 0:01:33.7]}
16... Nxg4 {[%clk 0:02:15]} 17. Bxe7 {[%clk 0:01:33.2]} 17... Qc7 {[%clk
0:02:15.6]} 18. g3 {[%clk 0:01:24.6]} 18... Qxe7 {[%clk 0:02:14.4]} 19. Qf5
{[%clk 0:01:22.8]} 19... Ne5 {[%clk 0:02:05]} 20. Rd2 {[%clk 0:01:18.6]} 20...
d4 {[%clk 0:02:02.3]} 21. exd4 {[%clk 0:01:17.5]} 21... Nf3+ {[%clk 0:02:02.4]}
0-1

[Event "*** SCC Grand Prix: Titled Tuesday Blitz"]
[Site "Chess.com"]
[Date "2020.06.23"]
[Round "5"]
[White "Zkid"]
[Black "Durarbayli"]
[Result "0-1"]
[WhiteElo "2728"]
[BlackElo "2852"]
[TimeControl "180+1"]
[EndTime "10:53:20 PDT"]
[Termination "Durarbayli won by resignation"]

1. e4 {[%clk 0:02:54.6]} 1... c5 {[%clk 0:02:59.9]} 2. Nf3 {[%clk 0:02:53.5]}
2... d6 {[%clk 0:03:00.4]} 3. d4 {[%clk 0:02:53]} 3... cxd4 {[%clk 0:03:01.3]}
4. Nxd4 {[%clk 0:02:53.9]} 4... Nf6 {[%clk 0:03:01.4]} 5. f3 {[%clk 0:02:54.3]}
5... Nc6 {[%clk 0:02:59.7]} 6. c4 {[%clk 0:02:54.1]} 6... e6 {[%clk 0:03:00]} 7.
Nc3 {[%clk 0:02:54.2]} 7... Be7 {[%clk 0:02:59.1]} 8. Be3 {[%clk 0:02:54.2]}
8... O-O {[%clk 0:02:58.9]} 9. Be2 {[%clk 0:02:54.4]} 9... d5 {[%clk 0:02:58.7]}
10. cxd5 {[%clk 0:02:51.4]} 10... exd5 {[%clk 0:02:59.6]} 11. Nxc6 {[%clk
0:02:49.5]} 11... bxc6 {[%clk 0:02:58.6]} 12. exd5 {[%clk 0:02:49.2]} 12... Nxd5
{[%clk 0:02:54.3]} 13. Nxd5 {[%clk 0:02:49.2]} 13... cxd5 {[%clk 0:02:53]} 14.
O-O {[%clk 0:02:49.1]} 14... Bf6 {[%clk 0:02:53.4]} 15. Bd4 {[%clk 0:02:48.2]}
15... Bxd4+ {[%clk 0:02:30.1]} 16. Qxd4 {[%clk 0:02:47.7]} 16... Be6 {[%clk
0:02:24.6]} 17. Rac1 {[%clk 0:02:41.7]} 17... h6 {[%clk 0:02:21.6]} 18. Rc5
{[%clk 0:02:32.5]} 18... Qb6 {[%clk 0:02:17]} 19. Rfc1 {[%clk 0:02:31.7]} 19...
a5 {[%clk 0:02:10.4]} 20. Bb5 {[%clk 0:02:26.8]} 20... Rac8 {[%clk 0:02:01.2]}
21. Qf2 {[%clk 0:02:16.2]} 21... Qxb5 {[%clk 0:01:50]} 22. Rxb5 {[%clk
0:02:09.6]} 22... Rxc1+ {[%clk 0:01:49.3]} 23. Qf1 {[%clk 0:02:09.5]} 23...
Rxf1+ {[%clk 0:01:48]} 24. Kxf1 {[%clk 0:02:10.4]} 24... Ra8 {[%clk 0:01:42.3]}
25. Ke2 {[%clk 0:02:08.9]} 25... Kf8 {[%clk 0:01:42.8]} 26. Kd3 {[%clk
0:02:06.6]} 26... Ke7 {[%clk 0:01:43.2]} 27. Kd4 {[%clk 0:02:06.5]} 27... Kd6
{[%clk 0:01:41.4]} 28. Rb6+ {[%clk 0:02:06]} 28... Kc7 {[%clk 0:01:41.8]} 29.
Kc5 {[%clk 0:02:06.1]} 29... d4 {[%clk 0:01:39.8]} 30. Rc6+ {[%clk 0:02:05.8]}
30... Kd7 {[%clk 0:01:32.8]} 31. Rd6+ {[%clk 0:02:05.7]} 31... Ke7 {[%clk
0:01:32.8]} 32. Rxd4 {[%clk 0:02:06]} 32... Bxa2 {[%clk 0:01:32.5]} 33. Rd2
{[%clk 0:02:00.3]} 33... Bb3 {[%clk 0:01:31.2]} 0-1